bitfinex-derivatives/quotes_BNBF0:USTF0_20250303
["timestamp","ask_amount","ask_price","bid_price","bid_amount"]
[1740973430644,0.30185181,609.87,608.15,0.32886623]
[1740973430844,0.30185181,609.86,608.15,0.32886623]
[1740973431045,0.30185181,609.85,608.15,0.32886623]
[1740973431244,0.30185181,609.84,608.15,0.32886623]
[1740973431545,0.30185181,609.83,608.15,0.32886623]
[1740973431742,0.794,609.9,608.15,0.32886623]
[1740973431743,0.30185181,609.82,608.15,0.32886623]
[1740973431943,0.30185181,609.81,608.15,0.32886623]
[1740973432142,0.794,609.9,608.15,0.32886623]
[1740973432143,0.30185181,609.8,608.15,0.32886623]
[1740973432344,0.794,609.9,608.15,0.32886623]
[1740973432544,1.085,609.79,608.15,0.32886623]
[1740973432743,0.30185268,609.78,608.15,0.32886623]
[1740973433044,0.30185268,609.77,608.15,0.32886623]
[1740973433344,0.30185268,609.76,608.15,0.32886623]
[1740973433538,0.30185268,609.75,608.15,0.32886623]
[1740973433741,0.30185268,609.74,608.15,0.32886623]
[1740973434143,0.30185268,609.73,608.15,0.32886623]
[1740973434347,0.30185268,609.72,608.15,0.32886623]
[1740973434545,0.30185268,609.71,608.15,0.32886623]
[1740973434746,0.30185268,609.7,608.15,0.32886623]
[1740973434939,0.30185268,609.69,608.15,0.32886623]
[1740973435143,1.085,609.79,608.15,0.32886623]
[1740973435144,0.30185268,609.68,608.15,0.32886623]
[1740973435339,0.30185268,609.67,608.15,0.32886623]
[1740973435539,0.30185268,609.66,608.15,0.32886623]
[1740973435746,0.30185268,609.65,608.15,0.32886623]
[1740973436045,0.30185268,609.64,608.15,0.32886623]
[1740973436246,0.30185268,609.78,608.15,0.32886623]
[1740973436445,0.30185268,609.77,608.15,0.32886623]
[1740973436646,0.30185268,609.76,608.15,0.32886623]
[1740973436843,0.30185268,609.78,608.15,0.32886623]
[1740973437043,0.30185268,609.77,608.15,0.32886623]
[1740973437347,0.30191681,609.76,608.15,0.32886623]
[1740973437646,1.085,609.79,608.15,0.32886623]
[1740973437848,0.30193342,609.78,608.15,0.32886623]
[1740973438048,1.37293342,609.78,608.15,0.32886623]
[1740973438244,0.30193342,609.77,608.15,0.32886623]
[1740973438842,1.008,609.76,608.15,0.32886623]
[1740973439043,0.30192642,609.75,608.15,0.32886623]
[1740973439351,0.30192642,609.75,608.22,1.21664196]
[1740973439549,0.30192642,609.75,608.24,0.32881757]
[1740973440347,0.30192642,609.74,608.24,0.32881757]
[1740973440550,0.30192642,609.73,608.24,0.32881757]
[1740973440748,0.30192642,609.72,608.24,0.32881757]
[1740973440949,0.30192642,609.71,608.24,0.32881757]
[1740973441144,0.30192642,609.7,608.24,0.32881757]
[1740973441343,0.30192642,609.69,608.24,0.32881757]
[1740973441749,0.30192642,609.68,608.24,0.32881757]
[1740973441950,0.30192642,609.67,608.24,0.32881757]
[1740973442151,0.30192642,609.66,608.24,0.32881757]
[1740973442348,0.30192642,609.65,608.24,0.32881757]
[1740973442650,0.30192642,609.64,608.24,0.32881757]
[1740973442850,0.30192642,609.63,608.35,1.21664196]
[1740973443051,0.30192642,609.62,608.36,0.32875271]
[1740973443247,0.30192642,609.61,608.36,0.32875271]
[1740973443452,0.30196055,609.6,608.36,0.32875271]
[1740973443756,0.30196055,609.59,608.36,0.32875271]
[1740973443953,0.30196055,609.75,608.36,0.32875271]
[1740973444153,0.6299692,609.74,608.36,0.32875271]
[1740973444353,0.62997458,609.73,608.36,0.32875271]
[1740973444552,0.62997996,609.72,608.36,0.32875271]
[1740973444752,0.30196055,609.71,608.36,0.32875271]
[1740973446959,0.892,609.7,608.36,0.32875271]
[1740973447259,0.30196055,609.69,608.36,0.32875271]
[1740973453068,0.30196055,609.68,608.36,0.32875271]
[1740973453268,0.30196055,609.67,608.36,0.32875271]
[1740973453471,0.30198057,609.66,608.36,0.32875271]
[1740973453667,0.30198057,609.69,608.36,0.32875271]
[1740973453869,0.30198057,609.68,608.36,0.32875271]
[1740973454065,0.30198057,609.69,608.36,0.32875271]
[1740973454264,0.30198057,609.68,608.36,0.32875271]
[1740973454464,0.30198057,609.67,608.36,0.32875271]
[1740973454669,0.30198057,609.69,608.36,0.32875271]
[1740973454869,0.30198057,609.68,608.36,0.32875271]
[1740973455069,0.30198057,609.67,608.36,0.32875271]
[1740973455269,0.30198057,609.66,608.36,0.32875271]
[1740973455464,0.30198057,609.65,608.36,0.32875271]
[1740973455668,0.30198057,609.64,608.36,0.32875271]
[1740973455868,0.30198057,609.63,608.36,0.32875271]
[1740973456066,0.30198057,609.62,608.36,0.32875271]
[1740973456266,0.30198057,609.61,608.36,0.32875271]
[1740973456471,0.30198057,609.6,608.36,0.32875271]
[1740973456768,0.892,609.7,608.36,0.32875271]
[1740973456973,0.30215941,609.69,608.36,0.32875271]
[1740973457166,0.30215941,609.68,608.36,0.32875271]
[1740973457370,0.30215941,609.67,608.36,0.32875271]
[1740973457566,0.32805708,609.65,608.36,0.32875271]
[1740973457874,0.30215941,609.64,608.36,0.32875271]
[1740973458074,0.32805708,609.65,608.36,0.32875271]
[1740973458273,0.30214709,609.64,608.36,0.32875271]
[1740973458473,0.30214984,609.63,608.36,0.32875271]
[1740973458674,0.3280786,609.61,608.36,0.32875271]
[1740973458870,0.30214984,609.6,608.36,0.32875271]
[1740973459072,0.32809475,609.58,608.36,0.32875271]
[1740973459271,0.30214984,609.57,608.36,0.32875271]
[1740973459469,0.3281109,609.55,607.64,1.21664196]
[1740973459769,0.30214984,609.54,607.66,0.32913142]
[1740973459973,0.32812705,609.52,607.66,0.32913142]
[1740973460173,0.30218364,609.51,607.66,0.32913142]
[1740973460374,0.63032145,609.5,607.66,0.32913142]
[1740973460575,0.63032684,609.49,607.66,0.32913142]
[1740973460776,0.63033222,609.48,607.66,0.32913142]
[1740973460977,0.30218364,609.47,607.66,0.32913142]
[1740973461275,0.30218364,609.46,607.66,0.32913142]
[1740973461473,0.30218364,609.47,607.66,0.32913142]
[1740973461669,0.32815935,609.46,607.66,0.32913142]
[1740973461870,0.30214815,609.45,607.66,0.32913142]
[1740973462270,1.37214815,609.45,607.66,0.32913142]
[1740973462472,0.30214815,609.44,607.66,0.32913142]
[1740973466777,0.30209442,609.43,607.66,0.32913142]
[1740973466978,0.30209442,609.42,607.66,0.32913142]
[1740973467182,0.30209442,609.41,607.66,0.32913142]
[1740973467380,0.30209442,609.4,607.66,0.32913142]
[1740973467580,0.30209442,609.39,607.66,0.32913142]
[1740973467783,0.30209442,609.38,607.66,0.32913142]
[1740973468080,0.30209442,609.37,607.66,0.32913142]
[1740973468282,0.30209442,609.44,607.66,0.32913142]
[1740973468583,0.30209442,609.43,607.66,0.32913142]
[1740973468782,0.30209442,609.42,607.66,0.32913142]
[1740973468985,0.30209442,609.44,607.66,0.32913142]
[1740973469181,0.30209442,609.43,607.66,0.32913142]
[1740973469375,0.30209442,609.42,607.66,0.32913142]
[1740973469578,0.63028069,609.41,607.66,0.32913142]
[1740973469882,0.30209442,609.4,607.66,0.32913142]
[1740973470178,0.30215206,609.39,607.66,0.32913142]
[1740973470384,0.32820782,609.37,607.66,0.32913142]
[1740973470684,0.30215206,609.36,607.66,0.32913142]
[1740973471381,0.32822398,609.34,607.66,0.32913142]
[1740973471581,0.30215206,609.33,607.66,0.32913142]
[1740973471782,0.32824014,609.31,607.66,0.32913142]
[1740973471981,0.30215206,609.3,607.66,0.32913142]
[1740973472181,0.3282563,609.28,607.66,0.32913142]
[1740973472377,0.30215206,609.27,607.4,1.21664196]
[1740973472576,0.32827246,609.25,607.42,0.32926146]
[1740973472782,0.30215206,609.24,607.42,0.32926146]
[1740973472979,0.32828863,609.22,607.42,0.32926146]
[1740973473185,0.30215206,609.21,607.42,0.32926146]
[1740973473582,0.32830479,609.19,607.42,0.32926146]
[1740973473788,0.30215206,609.18,607.42,0.32926146]
[1740973474187,0.32832096,609.16,607.42,0.32926146]
[1740973474388,0.30215206,609.15,607.42,0.32926146]
[1740973474687,0.30215206,609.14,607.42,0.32926146]
[1740973474888,0.30215206,609.13,607.42,0.32926146]
[1740973475085,0.30215206,609.12,607.42,0.32926146]
[1740973475285,0.30215206,609.11,607.42,0.32926146]
[1740973475486,0.30215206,609.1,607.42,0.32926146]
[1740973475686,0.30215206,609.09,607.42,0.32926146]
[1740973475887,0.30215206,609.08,607.42,0.32926146]
[1740973476188,0.30215206,609.07,607.42,0.32926146]
[1740973476389,0.63052693,609.06,607.42,0.32926146]
[1740973476583,0.30215206,609.05,607.42,0.32926146]
[1740973476789,0.63053771,609.04,607.42,0.32926146]
[1740973476988,0.6305431,609.03,607.42,0.32926146]
[1740973477188,0.30215206,609.02,607.42,0.32926146]
[1740973477890,0.32840183,609.01,607.42,0.32926146]
[1740973478088,0.30215206,609.0,607.42,0.32926146]
[1740973478287,0.32841261,608.99,607.42,0.32926146]
[1740973478487,0.30236001,608.98,607.42,0.32926146]
[1740973478684,0.3284234,608.97,607.42,0.32926146]
[1740973478890,0.30236001,608.96,607.42,0.32926146]
[1740973479085,0.32843418,608.95,607.42,0.32926146]
[1740973479289,0.30236001,608.94,607.42,0.32926146]
[1740973479488,0.63079959,608.94,607.42,0.32926146]
[1740973479689,0.30236001,608.93,607.42,0.32926146]
[1740973481889,0.30234495,608.92,607.42,0.32926146]
[1740973482093,0.32843958,608.94,607.42,0.32926146]
[1740973482094,0.30234495,608.93,607.42,0.32926146]
[1740973482292,0.63079532,608.92,607.42,0.32926146]
[1740973482492,0.30234495,608.91,607.42,0.32926146]
[1740973482691,0.63080071,608.91,607.42,0.32926146]
[1740973482891,0.30234495,608.9,607.42,0.32926146]
[1740973483492,0.32845576,608.91,607.42,0.32926146]
[1740973483693,0.30232372,608.9,607.42,0.32926146]
[1740973486995,0.30228805,608.89,607.42,0.32926146]
[1740973487195,0.30228805,608.9,607.42,0.32926146]
[1740973487397,0.30228805,608.89,607.42,0.32926146]
[1740973487695,0.30228805,608.88,607.42,0.32926146]
[1740973487895,0.30228805,608.9,607.42,0.32926146]
[1740973488096,0.30228805,608.89,607.42,0.32926146]
[1740973488392,0.30228805,608.88,607.42,0.32926146]
[1740973488692,0.30228805,608.87,607.42,0.32926146]
[1740973488997,0.30228805,608.86,607.42,0.32926146]
[1740973489295,0.30228805,608.85,607.42,0.32926146]
[1740973489496,0.32845576,608.91,607.42,0.32926146]
[1740973489497,0.30228805,608.9,607.42,0.32926146]
[1740973489696,0.30228805,608.89,607.42,0.32926146]
[1740973489898,0.30228805,608.9,607.42,0.32926146]
[1740973490096,0.30228805,608.89,607.42,0.32926146]
[1740973490293,0.30229984,608.88,607.42,0.32926146]
[1740973490492,0.30229984,608.87,607.42,0.32926146]
[1740973490695,0.30229984,608.86,607.42,0.32926146]
[1740973491198,0.857,608.85,607.42,0.32926146]
[1740973491401,0.30229984,608.84,607.42,0.32926146]
[1740973492101,1.449,608.83,607.42,0.32926146]
[1740973492294,0.30229984,608.82,607.42,0.32926146]
[1740973497703,0.30229984,608.82,607.49,1.21664196]
[1740973497897,0.30229984,608.82,607.51,0.32921268]
[1740973501705,0.30222224,608.81,607.51,0.32921268]
[1740973502006,0.30222224,608.8,607.53,1.21664196]
[1740973502200,0.30222224,608.82,607.55,0.32919101]
[1740973502404,0.30222224,608.81,607.55,0.32919101]
[1740973502604,1.449,608.83,607.55,0.32919101]
[1740973502605,0.30222224,608.82,607.55,0.32919101]
[1740973510111,1.449,608.83,607.55,0.32919101]
[1740973510312,0.30225873,608.82,607.55,0.32919101]
[1740973512511,1.449,608.83,607.55,0.32919101]
[1740973517522,1.449,608.83,607.64,1.21664196]
[1740973517817,1.449,608.83,607.66,0.32913142]
[1740973518513,2.469,608.83,607.66,0.32913142]
[1740973519815,2.469,608.83,607.73,1.21664196]
[1740973520021,2.469,608.83,607.75,0.32908268]
[1740973521916,3.612,608.83,607.75,0.32908268]
[1740973528324,3.612,608.83,607.94,1.21664196]
[1740973529019,3.612,608.83,607.96,0.32896901]
[1740973531928,3.612,608.83,608.01,1.21664196]
[1740973532229,3.612,608.83,608.03,0.32893113]
[1740973537935,3.612,608.83,608.06,1.21664196]
[1740973538242,3.612,608.83,608.07,0.3289095]
[1740973555052,3.612,608.83,608.16,1.21664196]
[1740973556656,3.612,608.83,608.17,0.32885541]
[1740973558053,3.612,608.83,608.48,1.21664196]
[1740973558250,2.163,608.83,608.49,0.32868247]
[1740973558450,0.67031533,610.8,608.49,0.32868247]
[1740973558651,0.32749304,610.7,608.49,0.32868247]
[1740973558858,0.30172791,610.69,608.49,0.32868247]
[1740973559057,0.32755203,610.59,608.49,0.32868247]
[1740973559357,0.30172791,610.58,608.49,0.32868247]
[1740973559557,0.32756813,610.56,608.49,0.32868247]
[1740973559759,0.30172791,610.55,608.49,0.32868247]
[1740973559958,5.26846119,611.25,608.49,0.32868247]
[1740973559959,0.32758423,610.53,608.49,0.32868247]
[1740973560158,0.30172791,610.52,608.49,0.32868247]
[1740973560457,0.32760032,610.5,608.49,0.32868247]
[1740973560654,0.30172791,610.49,608.49,0.32868247]
[1740973560953,0.30172791,610.48,608.49,0.32868247]
[1740973561159,0.62937142,610.47,608.49,0.32868247]
[1740973561359,0.32762716,610.45,608.49,0.32868247]
[1740973561560,0.301755,610.44,608.49,0.32868247]
[1740973561761,0.32764326,610.42,608.49,0.32868247]
[1740973562062,0.301755,610.41,608.49,0.32868247]
[1740973562361,0.32765936,610.39,608.49,0.32868247]
[1740973562556,0.301755,610.38,608.49,0.32868247]
[1740973562756,0.301755,610.37,608.49,0.32868247]
[1740973562962,0.32768083,610.35,608.49,0.32868247]
[1740973563162,0.301755,610.34,608.49,0.32868247]
[1740973563456,0.301755,610.33,608.49,0.32868247]
[1740973563656,0.301755,610.32,608.49,0.32868247]
[1740973563861,0.301755,610.31,608.49,0.32868247]
[1740973564061,0.301755,610.3,608.49,0.32868247]
[1740973564260,0.30186024,610.29,608.49,0.32868247]
[1740973564456,0.30186024,610.28,608.49,0.32868247]
[1740973564662,0.30186024,610.27,608.49,0.32868247]
[1740973564957,0.30186024,610.26,608.49,0.32868247]
[1740973565162,0.30186024,610.25,608.49,0.32868247]
[1740973565363,0.30186024,610.24,608.49,0.32868247]
[1740973565564,0.32775064,610.22,608.49,0.32868247]
[1740973565762,0.30186024,610.21,608.49,0.32868247]
[1740973566063,0.30183285,610.2,608.49,0.32868247]
[1740973566562,0.30183285,610.19,608.49,0.32868247]
[1740973566862,0.3277775,610.17,608.49,0.32868247]
[1740973567064,0.30183285,610.16,608.49,0.32868247]
[1740973567364,0.32779362,610.14,608.49,0.32868247]
[1740973567564,0.30183285,610.13,608.49,0.32868247]
[1740973567758,0.62963721,610.12,608.49,0.32868247]
[1740973568063,0.30183285,610.11,608.49,0.32868247]
[1740973568263,0.62964796,610.1,608.49,0.32868247]
[1740973568458,0.62965333,610.09,608.49,0.32868247]
[1740973568668,0.6296587,610.08,608.49,0.32868247]
[1740973568865,0.30183285,610.07,608.49,0.32868247]
[1740973571560,1.71394799,610.06,608.49,0.32868247]
[1740973571761,0.30183285,610.05,608.49,0.32868247]
[1740973574659,0.30183285,610.05,608.49,1.54532443]
[1740973575666,0.30174695,610.04,608.49,1.54532443]
[1740973575861,0.30174695,610.03,608.49,1.54532443]
[1740973576057,0.30174695,610.05,608.49,1.54532443]
[1740973576263,0.30174695,610.04,608.49,1.54532443]
[1740973576458,0.30174695,610.03,608.49,1.54532443]
[1740973576660,0.30174695,610.02,608.49,1.54532443]
[1740973576865,0.30174695,610.01,608.49,1.54532443]
[1740973577167,0.30174695,610.0,608.58,1.21664196]
[1740973577366,0.30174695,610.0,608.6,0.32862306]
[1740973577570,0.30174695,609.99,608.6,0.32862306]
[1740973577765,0.30174695,610.05,608.6,0.32862306]
[1740973577966,0.30174695,610.04,608.6,0.32862306]
[1740973578162,0.30174695,610.05,608.6,0.32862306]
[1740973578365,0.30174695,610.04,608.6,0.32862306]
[1740973578569,0.30174695,610.05,608.6,0.32862306]
[1740973578767,0.30174695,610.04,608.6,0.32862306]
[1740973578965,0.30174695,610.05,608.6,0.32862306]
[1740973579171,1.71365962,610.03,608.6,0.32862306]
[1740973579473,0.30174695,610.02,608.6,0.32862306]
[1740973579872,0.30174695,610.02,608.6,1.54526502]
[1740973580570,1.71365962,610.03,608.6,1.54526502]
[1740973580766,0.30167267,610.02,608.6,1.54526502]
[1740973582170,0.30167267,610.27,608.6,1.54526502]
[1740973582371,0.30161767,610.26,608.88,1.21664196]
[1740973582565,0.30161767,610.27,608.88,1.21664196]
[1740973582770,0.30161767,610.26,608.88,1.21664196]
[1740973582973,0.30161767,610.27,608.9,0.32846115]
[1740973583175,0.30161767,610.26,608.9,0.32846115]
[1740973583372,0.30161767,610.27,608.9,0.32846115]
[1740973583568,0.30161767,610.26,608.9,0.32846115]
[1740973583773,0.30161767,610.27,608.9,0.32846115]
[1740973583973,0.30161767,610.26,608.9,0.32846115]
[1740973584274,0.30161767,610.25,608.9,0.32846115]
[1740973584475,0.30161767,610.27,608.9,0.32846115]
[1740973584669,0.30161767,610.26,608.9,0.32846115]
[1740973584871,0.30161767,610.27,608.9,0.32846115]
[1740973585072,0.30161767,610.26,608.9,0.32846115]
[1740973585273,0.30161767,610.25,608.9,0.32846115]
[1740973585474,0.30161767,610.24,608.9,0.32846115]
[1740973585670,0.62936294,610.23,608.9,0.32846115]
[1740973585875,0.30161767,610.22,608.9,0.32846115]
[1740973586076,0.30161767,610.21,608.9,0.32846115]
[1740973586278,0.30161767,610.2,608.9,0.32846115]
[1740973586477,0.30161767,610.19,608.9,0.32846115]
[1740973586678,0.30161767,610.18,608.9,0.32846115]
[1740973586876,0.30161767,610.22,608.9,0.32846115]
[1740973587078,0.32774527,610.23,608.9,0.32846115]
[1740973587079,0.30161767,610.21,608.9,0.32846115]
[1740973587273,0.30161767,610.2,608.9,0.32846115]
[1740973587478,0.30161767,610.19,608.9,0.32846115]
[1740973587676,0.30161767,610.22,608.9,0.32846115]
[1740973587877,0.30161767,610.21,608.9,0.32846115]
[1740973588077,0.30161767,610.2,608.9,0.32846115]
[1740973588278,0.30161767,610.19,608.9,0.32846115]
[1740973588476,0.30161767,610.18,608.9,0.32846115]
[1740973588677,0.30161767,610.17,608.9,0.32846115]
[1740973588981,0.30161767,610.16,608.9,0.32846115]
[1740973589180,0.30161767,610.15,608.9,0.32846115]
[1740973589381,0.30161767,610.18,608.9,0.32846115]
[1740973589681,0.30161767,610.17,608.9,0.32846115]
[1740973589881,0.30161767,610.18,608.9,0.32846115]
[1740973590076,0.30161767,610.17,608.9,0.32846115]
[1740973590282,0.30161767,610.16,608.9,0.32846115]
[1740973590577,0.3016115,610.15,608.9,0.32846115]
[1740973590778,0.3016115,610.14,608.9,0.32846115]
[1740973590983,0.3016115,610.13,608.9,0.32846115]
[1740973591279,0.871,610.19,608.9,0.32846115]
[1740973591684,0.30157053,610.18,608.9,0.32846115]
[1740973592183,1.833,610.19,608.9,0.32846115]
[1740973592382,0.30158104,610.18,608.9,0.32846115]
[1740973593381,1.71316751,610.17,608.9,0.32846115]
[1740973593582,0.30158104,610.16,608.9,0.32846115]
[1740973594086,0.30156924,610.15,608.9,0.32846115]
[1740973594281,0.30156924,610.18,608.9,0.32846115]
[1740973594481,0.30156924,610.17,608.9,0.32846115]
[1740973594680,0.30156924,610.16,608.9,0.32846115]
[1740973594880,0.30156924,610.15,608.9,0.32846115]
[1740973595180,0.30156924,610.14,608.9,0.32846115]
[1740973595384,0.30156924,610.18,608.9,0.32846115]
[1740973595582,1.833,610.19,608.9,0.32846115]
[1740973595583,0.30156924,610.17,608.9,0.32846115]
[1740973595888,0.30156924,610.16,608.9,0.32846115]
[1740973596087,1.833,610.19,608.9,0.32846115]
[1740973599789,0.30148917,610.18,608.9,0.32846115]
[1740973600681,0.962,610.19,608.9,0.32846115]
[1740973601788,2.052,610.19,608.9,0.32846115]
[1740973603896,0.30158523,610.18,608.9,0.32846115]
[1740973604690,2.98,610.19,608.9,0.32846115]
[1740973604891,0.30157317,610.18,608.9,0.32846115]
[1740973609393,0.30157317,610.17,608.9,0.32846115]
[1740973609592,0.30157317,610.16,608.9,0.32846115]
[1740973609797,0.30157317,610.15,608.9,0.32846115]
[1740973609993,2.98,610.19,608.9,0.32846115]
[1740973609994,0.30157317,610.14,608.9,0.32846115]
[1740973610196,0.30157317,610.13,608.9,0.32846115]
[1740973610400,2.98,610.19,608.9,0.32846115]
[1740973610602,0.30166965,610.18,608.9,0.32846115]
[1740973610900,0.30166965,610.17,608.9,0.32846115]
[1740973611099,0.30166965,610.18,608.9,0.32846115]
[1740973611295,0.30166965,610.17,608.9,0.32846115]
[1740973611498,0.30166965,610.16,608.9,0.32846115]
[1740973611698,0.30166965,610.15,608.9,0.32846115]
[1740973611899,2.98,610.19,608.9,0.32846115]
[1740973611900,0.30166965,610.14,608.9,0.32846115]
[1740973612095,0.30166965,610.18,608.9,0.32846115]
[1740973612302,0.30166965,610.17,608.9,0.32846115]
[1740973612500,2.98,610.19,608.9,0.32846115]
[1740973612501,0.30166965,610.18,608.9,0.32846115]
[1740973612701,0.30166965,610.17,608.9,0.32846115]
[1740973612903,0.30166965,610.16,608.9,0.32846115]
[1740973613697,0.943,610.17,608.9,0.32846115]
[1740973614005,0.30167566,610.16,608.9,0.32846115]
[1740973615800,0.962,610.15,608.9,0.32846115]
[1740973616001,0.30167566,610.14,608.9,0.32846115]
[1740973621711,0.30171916,610.13,608.9,0.32846115]
[1740973621907,0.30171916,610.12,608.9,0.32846115]
[1740973622107,0.30171916,610.14,608.9,0.32846115]
[1740973622302,0.30171916,610.13,608.9,0.32846115]
[1740973622507,0.30171916,610.14,608.9,0.32846115]
[1740973622704,0.30171916,610.13,608.9,0.32846115]
[1740973622905,0.30171916,610.12,608.9,0.32846115]
[1740973623108,0.30171916,610.11,608.9,0.32846115]
[1740973623306,0.30171916,610.1,608.9,0.32846115]
[1740973623507,0.30171916,610.14,608.9,0.32846115]
[1740973624310,1.71378621,610.13,608.9,0.32846115]
[1740973624605,0.30171916,610.12,608.9,0.32846115]
[1740973626311,0.30171916,610.11,608.9,0.32846115]
[1740973626512,0.30171916,610.12,608.9,0.32846115]
[1740973627309,0.30171916,610.14,608.9,0.32846115]
[1740973627610,0.30171916,610.13,608.9,0.32846115]
[1740973627816,0.30171916,610.12,608.9,0.32846115]
[1740973628011,0.30171916,610.11,608.9,0.32846115]
[1740973628212,0.30169367,610.1,608.9,0.32846115]
[1740973628408,0.30169367,610.09,608.9,0.32846115]
[1740973628614,0.30169367,610.08,608.9,0.32846115]
[1740973628817,0.30169367,610.07,608.9,0.32846115]
[1740973629017,0.30169367,610.06,608.9,0.32846115]
[1740973629218,0.30169367,610.05,608.9,0.32846115]
[1740973629419,0.30169367,610.11,608.9,0.32846115]
[1740973631019,1.032,610.1,608.9,0.32846115]
[1740973631318,0.30169367,610.09,608.9,0.32846115]
[1740973633119,1.032,610.1,608.9,0.32846115]
[1740973635224,1.032,610.1,608.9,1.54510311]
[1740973640026,0.74,610.09,608.9,1.54510311]
[1740973640823,0.74,610.09,608.9,0.32846115]
[1740973643124,0.30152151,610.08,608.9,0.32846115]
[1740973644822,0.74,610.09,608.9,0.32846115]
[1740973645026,0.30153728,610.08,608.9,1.54510311]
[1740973648033,0.74,610.09,608.9,0.32846115]
[1740973651731,0.3015728,610.08,608.9,0.32846115]
[1740973653032,0.74,610.09,608.9,0.32846115]
[1740973653334,0.30155101,610.08,608.9,0.32846115]
[1740973654736,0.30155941,610.07,608.9,0.32846115]
[1740973654938,0.30155941,610.08,608.9,0.32846115]
[1740973655137,0.30155941,610.07,608.9,0.32846115]
[1740973655335,0.30155941,610.06,608.9,0.32846115]
[1740973655532,0.30155941,610.05,608.9,0.32846115]
[1740973655733,0.74,610.09,608.9,0.32846115]
[1740973655734,0.30155941,610.04,608.9,0.32846115]
[1740973655934,0.30155941,610.08,608.9,0.32846115]
[1740973656237,0.30155941,610.07,608.9,0.32846115]
[1740973657134,1.07655941,610.07,608.9,0.32846115]
[1740973657334,0.30155941,610.06,608.9,0.32846115]
[1740973657939,0.775,610.07,608.9,0.32846115]
[1740973668458,1.774,610.07,608.9,0.32846115]
[1740973670264,0.30159363,610.06,608.9,0.32846115]
[1740973670863,0.30159199,610.05,608.9,0.32846115]
[1740973671058,0.30159199,610.06,608.9,0.32846115]
[1740973671260,0.30159199,610.05,608.9,0.32846115]
[1740973671460,0.30159199,610.04,608.9,0.32846115]
[1740973671661,0.30159199,610.03,608.9,0.32846115]
[1740973671958,0.30159199,610.02,608.9,0.32846115]
[1740973672165,0.30159199,610.01,608.9,0.32846115]
[1740973672359,0.3016011,610.0,608.9,0.32846115]
[1740973672560,0.3016011,610.06,608.9,0.32846115]
[1740973672865,0.3016011,610.05,608.9,0.32846115]
[1740973673057,0.999,610.07,608.9,0.32846115]
[1740973673058,0.3016011,610.06,608.93,1.21664196]
[1740973673261,0.3016011,610.05,608.95,0.32843418]
[1740973673458,0.3016011,610.04,608.95,0.32843418]
[1740973673663,0.3016011,610.03,608.95,0.32843418]
[1740973673963,0.3016011,610.02,608.95,0.32843418]
[1740973674165,0.3016011,610.06,608.95,0.32843418]
[1740973674465,1.4036011,610.05,608.95,0.32843418]
[1740973674762,0.3016011,610.04,608.95,0.32843418]
[1740973675360,0.3016011,610.04,608.96,1.21664196]
[1740973675563,0.30159553,610.03,608.98,0.32841801]
[1740973675758,1.102,610.05,608.98,0.32841801]
[1740973675759,0.30159553,610.04,608.98,0.32841801]
[1740973675964,0.30159553,610.03,608.98,0.32841801]
[1740973676166,0.30159553,610.02,608.98,0.32841801]
[1740973676460,0.30159553,610.01,608.98,0.32841801]
[1740973676658,1.102,610.05,608.98,0.32841801]
[1740973676862,0.30156425,610.04,608.98,0.32841801]
[1740973677265,1.102,610.05,608.98,0.32841801]
[1740973677266,0.30156348,610.03,608.98,0.32841801]
[1740973677465,1.102,610.05,608.98,0.32841801]
[1740973677664,0.30156318,610.04,608.98,0.32841801]
[1740973677864,0.30156318,610.04,608.99,1.21664196]
[1740973678065,0.30156318,610.04,609.01,0.32840183]
[1740973678370,0.30156349,610.03,609.01,0.32840183]
[1740973678564,1.102,610.05,609.01,0.32840183]
[1740973682472,0.912,610.04,609.01,0.32840183]
[1740973682771,0.912,610.04,609.02,1.21664196]
[1740973682971,0.912,610.04,609.04,0.32838565]
[1740973684570,0.912,610.04,609.05,1.21664196]
[1740973684767,0.912,610.04,609.07,0.32836948]
[1740973687275,0.912,610.04,609.15,1.21664196]
[1740973687473,0.912,610.04,609.16,0.32832096]
[1740973687673,0.30156077,610.03,609.16,0.32832096]
[1740973688075,0.912,610.04,609.16,0.32832096]
[1740973691472,1.008,610.03,609.16,0.32832096]
[1740973698692,0.711,610.02,609.16,0.32832096]
[1740973699892,0.711,610.02,609.16,0.00032096]
[1740973700692,0.731,610.01,609.16,0.00032096]
[1740973707195,0.30157655,610.0,609.16,0.00032096]
[1740973707604,0.731,610.01,609.16,0.00032096]
[1740973708100,0.30157539,610.0,609.16,0.00032096]
[1740973708698,0.731,610.01,609.16,0.00032096]
[1740973709801,0.978,610.0,609.16,0.00032096]
[1740973712706,0.30165228,609.99,609.16,0.00032096]
[1740973713104,0.978,610.0,609.16,0.00032096]
[1740973713505,1.71315346,609.98,609.16,0.00032096]
[1740973714009,0.978,610.0,609.16,0.00032096]
[1740973714212,0.30164133,609.99,609.16,0.00032096]
[1740973715011,0.978,610.0,609.16,0.00032096]
[1740973716311,0.30163197,609.99,609.16,0.00032096]